fUSD/lending_fUSD_20240129
["ID","MTS","AMOUNT","RATE_DAILY","PERIOD"]
[312985500,1706565039719,-258.77909786,0.00037897,4]
[312985501,1706565039728,-462.37183436,0.00037897,4]
[312985502,1706565039738,-228.3602233,0.00037897,4]
[312985503,1706565039747,-284.88868145,0.00037897,4]
[312985504,1706565039756,-412.42049995,0.00037897,2]
[312985505,1706565039765,-540.46244453,0.000379,2]
[312985506,1706565039776,-117427.19425666,0.000379,2]
[312985507,1706565039789,-5711.33226103,0.000379,2]
[312985508,1706565039806,-20595.49484518,0.000379,2]
[312985509,1706565039821,-2345.49457667,0.000379,2]
[312985518,1706565041485,-164.34738147,0.0002847,2]
[312985519,1706565041495,-1294.54889057,0.000379,2]
[312985520,1706565041539,-1017.80621206,0.000379,2]
[312985521,1706565041551,-3436.70335641,0.000379,2]
[312985522,1706565041562,-660.87471969,0.000379,2]
[312985523,1706565041602,-717.54551754,0.000379,2]
[312985524,1706565041614,-5044.6125838,0.000379,2]
[312985525,1706565041716,-303.84007919,0.000379,2]
[312985526,1706565041777,-391.0305,0.000379,2]
[312985544,1706565044534,-279.603,0.000379,2]
[312985556,1706565046330,-2347.46759022,0.000379,2]
[312985557,1706565046343,-53917.16204,0.000379,2]
[312985558,1706565046355,-15784.99912424,0.000379,2]
[312985559,1706565046370,-276.36,0.000379,2]
[312985560,1706565046560,-292577.28889935,0.000379,2]
[312985561,1706565046573,-12967.6822,0.000379,2]
[312985562,1706565046626,-576.75,0.000379,2]
[312985563,1706565046638,-2162.6,0.000379,2]
[312985564,1706565046652,-2311.2,0.000379,2]
[312985565,1706565150063,3269.41594207,0.00021846,2]
[312985566,1706565230867,848.21038089,0.00021846,2]
[312985569,1706565237374,674.9808053,0.00021846,2]
[312985572,1706565272877,289.87958971,0.00021846,2]
[312985573,1706565344593,156.96046144,0.00021981,2]
[312985574,1706565440679,600.0,0.00021865,2]
[312985575,1706565467411,165.81,0.00021856,2]
[312985576,1706565481511,166.52,0.00021856,10]
[312985577,1706565483324,156.73,0.00022393,2]
[312985578,1706565496893,250.0,0.00021845,2]
[312985579,1706565504184,155.04,0.0002202,2]
[312985580,1706565504406,155.04,0.00022211,2]
[312985581,1706565504628,155.04,0.00022402,2]
[312985582,1706565507447,176.69,0.00022,2]
[312985583,1706565522150,405.37,0.00021817,2]
[312985584,1706565542768,532.3,0.00019894,2]
[312985585,1706565542812,532.3,0.00022158,2]
[312985586,1706565561876,173.1,0.00021826,2]
[312985587,1706565567195,181.12,0.00021821,2]
[312985588,1706565604151,251.88,0.00021826,2]
[312985591,1706565749570,1724.47,0.00021816,2]
[312985592,1706565753694,250.0,0.00021918,2]
[312985593,1706565794274,9738.38,0.0002183,2]
[312985594,1706565808889,150.0,0.0002183,2]
[312985595,1706565828883,2000.0,0.00021836,2]
[312985599,1706565906426,520.0,0.00021841,2]
[312985600,1706565931631,250.0,0.0002182,2]
[312985601,1706565934868,155.04,0.00021989,2]
[312985602,1706565935005,155.04,0.00022371,2]
[312985603,1706565967801,237.26198864,0.00022,2]
[312985604,1706565980493,479.07,0.000199,2]
[312985605,1706565980695,479.07,0.00022164,2]
[312985608,1706565982896,-218.45729164,0.00022517,2]
[312985609,1706565982919,-260.76614424,0.00022518,2]
[312985611,1706565982939,-413.06174512,0.00022519,2]
[312985612,1706565982960,-4708.86041879,0.00022522,2]
[312985613,1706565982983,-4256.30556535,0.00022523,2]
[312985614,1706565983003,-235.43069741,0.00022548,2]
[312985615,1706565983025,-167.3655385,0.0002269,2]
[312985616,1706565983044,-7170.27,0.0002269,2]
[312985617,1706565983063,-845.12,0.0002269,2]
[312985618,1706565983084,-167.36553845,0.00022725,2]
[312985619,1706565983103,-499.99,0.00022725,2]
[312985620,1706565983126,-1535.8,0.00022725,2]
[312985621,1706565983149,-155.04,0.00022753,2]
[312985622,1706565983174,-167.36553845,0.0002276,2]
[312985623,1706565983194,-129656.51217511,0.00022784,2]
[312985624,1706565983217,-218.34785309,0.00022785,2]
[312985625,1706565983239,-1000.0,0.00022793,2]
[312985626,1706565983261,-726.15,0.00022794,2]
[312985627,1706565983282,-21630.58,0.00022794,2]
[312985628,1706565983304,-710.07,0.00022795,2]
[312985629,1706565983324,-6920.02690777,0.00022795,2]
[312985630,1706565983344,-167.36553845,0.00022795,2]
[312985631,1706565983368,-714.36,0.00022796,2]
[312985632,1706565983388,-717.63,0.00022796,2]
[312985633,1706565983408,-993.55703931,0.00022797,2]
[312985634,1706565983429,-501.45305311,0.00022797,2]
[312985635,1706565983449,-2901.94258728,0.00022798,2]
[312985636,1706565983469,-210.0,0.00022799,2]
[312985637,1706565983489,-1000.0,0.00022799,2]
[312985638,1706565983511,-452.6259,0.00022799,2]
[312985639,1706565983733,-4778.5322,0.00022799,2]
[312985640,1706565983755,-612.0433,0.00022799,2]
[312985641,1706565983776,-600.0,0.00022799,2]
[312985642,1706565983800,-1307.6163,0.00022799,2]
[312985643,1706565983823,-1330.28432919,0.00022799,2]
[312985644,1706565983846,-160.3733538,0.000228,2]
[312985645,1706565983868,-1119.35276002,0.000228,2]
[312985646,1706565983893,-167.36553845,0.0002283,2]
[312985647,1706565983917,-167.36553845,0.00022865,2]
[312985648,1706565983938,-218.39209122,0.00022875,2]
[312985649,1706565983964,-501.6773538,0.00022895,2]
[312985650,1706565983988,-299715.177703,0.00022896,2]
[312985675,1706566231429,-413.06174512,0.00022657,2]
[312985676,1706566231626,-196.8017015,0.00022658,2]
[312985677,1706566231645,-89.21312575,0.00022658,2]
[312985678,1706566231659,-264.01241493,0.00022658,2]
[312985679,1706566231670,-200.09442258,0.00022659,2]
[312985680,1706566231683,-4508.76599621,0.00022659,2]
[312985681,1706566231693,-1437.05,0.0002266,2]
[312985682,1706566231705,-207.4184,0.00022796,2]
[312985683,1706566231715,-1000.0,0.00022796,2]
[312985684,1706566231726,-862.07833892,0.00022797,2]
[312985685,1706566231742,-117.35532608,0.00022797,2]
[312985686,1706566231752,-469.24801078,0.000228,2]
[312985688,1706566231767,-362.73325483,0.000228,2]
[312985691,1706566231786,-131.6971563,0.000228,2]
[312985693,1706566231798,-301.814667,0.00022894,2]
[312985695,1706566231810,-698.185333,0.00022894,2]
[312985698,1706566231820,-101.814667,0.00022894,2]
[312985701,1706566231838,-256.64643938,0.00022894,2]
[312985704,1706566231864,-1288.64349942,0.00022894,2]
[312985707,1706566231876,-219.50894771,0.00022894,2]
[312985709,1706566231886,-163.72705546,0.00022894,2]
[312985711,1706566231899,-97.38297829,0.00022894,2]
[312985713,1706566231909,-275.02799802,0.00022895,2]
[312985715,1706566231918,-1034.41191658,0.00022895,2]
[312985719,1706566231941,-784.17302211,0.00022895,2]
[312985721,1706566231953,-1305.85682394,0.00022895,2]
[312985723,1706566231965,-1521.94685365,0.00022895,2]
[312985725,1706566231975,-1003.67513174,0.00022895,2]
[312985726,1706566231988,-2207.00678967,0.00022895,2]
[312985730,1706566237464,-265.25707154,0.00022895,2]
[312985731,1706566237481,-620.15941707,0.00022895,2]
[312985732,1706566237499,-315.19030927,0.00022895,2]
[312985733,1706566237516,-544.3953379,0.00022895,2]
[312985734,1706566237531,-405.4670116,0.00022895,2]
[312985735,1706566237547,-4401.08588356,0.00022895,2]
[312985736,1706566237563,-10330.70143756,0.00022895,2]
[312985737,1706566237583,-5136.62864425,0.00022895,2]
[312985738,1706566237598,-1145.0,0.00022895,2]
[312985739,1706566237613,-54044.27629101,0.00022895,2]
[312985740,1706566237685,-49237.66884994,0.00022895,2]
[312985741,1706566237696,-2729.27365606,0.00022896,2]
[312985742,1706566237711,-24845.0033405,0.00022896,2]
[312985743,1706566237729,-48795.5751412,0.00022896,2]
[312985744,1706566237746,-209584.76310455,0.00022896,2]
[312985745,1706566237763,-717.80251104,0.00022896,2]
[312985746,1706566237798,-598.79650643,0.00022896,2]
[312985747,1706566237812,-948.984565,0.00022896,2]
[312985748,1706566237828,-471398.51420077,0.00022896,2]
[312985749,1706566237840,-258.77909786,0.00022897,2]
[312985750,1706566237852,-185.05485877,0.00022897,2]
[312985753,1706566237866,-1262.39631924,0.00022897,2]
[312985754,1706566237879,-697.51118737,0.00022897,2]
[312985755,1706566237892,-155.0,0.00022897,2]
[312985756,1706566237905,-164.06048249,0.00022897,2]
[312985757,1706566237918,-324.50523867,0.00022897,2]
[312985758,1706566237929,-1608.71393111,0.00022897,2]
[312985759,1706566237940,-155.19642721,0.00022897,2]
[312985760,1706566237956,-215.1525259,0.00022897,2]
[312985761,1706566237966,-3234.95429051,0.00022897,2]
[312985762,1706566237977,-201.1342087,0.00022897,2]
[312985763,1706566237991,-504.03826774,0.00022897,2]
[312985764,1706566238003,-155.0,0.00022897,2]
[312985765,1706566238015,-181.7778289,0.00022897,2]
[312985766,1706566238026,-346.93689193,0.00022897,2]
[312985767,1706566238039,-212.8984188,0.00022897,2]
[312985768,1706566238051,-1245.40466885,0.00022897,2]
[312985769,1706566238062,-155.0,0.00022897,2]
[312985770,1706566238073,-155.0,0.00022897,2]
[312985771,1706566238088,-228.3602233,0.00022897,2]
[312985772,1706566238108,-155.32764574,0.00022897,2]
[312985773,1706566238120,-155.48465172,0.00022897,2]
[312985774,1706566238133,-434.66438876,0.00022897,2]
[312985775,1706566238147,-248.80090434,0.00022897,2]
[312985776,1706566238159,-155.0,0.00022897,2]
[312985777,1706566238172,-172.02741418,0.00022897,2]
[312985778,1706566238184,-3333.83089488,0.00022897,2]
[312985779,1706566238196,-282.88521942,0.00022897,2]
[312985780,1706566238210,-524.62089788,0.00022897,2]
[312985781,1706566238222,-245.07002235,0.00022897,2]
[312985782,1706566238234,-155.0,0.00022897,2]
[312985783,1706566238247,-501.92146411,0.00022897,2]
[312985784,1706566238266,-310.48014184,0.00022897,2]
[312985785,1706566238280,-411.34269219,0.00022897,2]
[312985786,1706566238294,-524.74206108,0.00022897,2]
[312985787,1706566238307,-319.44822702,0.00022897,2]
[312985788,1706566238320,-246.64629322,0.00022897,2]
[312985789,1706566238332,-164.34738147,0.00022897,2]
[312985790,1706566238344,-155.0,0.00022897,2]
[312985791,1706566238357,-155.0,0.00022898,2]
[312985792,1706566238369,-10524.21011333,0.00022898,2]
[312985793,1706566238381,-24312.16676934,0.00022898,2]
[312985794,1706566238394,-100000.0,0.000229,2]
[312985795,1706566238407,-1000.0,0.000229,2]
[312985796,1706566238419,-167.36553845,0.000229,2]
[312985797,1706566238431,-253.01096368,0.000229,2]
[312985798,1706566238443,-156.59525539,0.000229,2]
[312985799,1706566238455,-677.65422018,0.000229,2]
[312985800,1706566238468,-251.88,0.00022918,2]
[312985801,1706566238479,-184.75257673,0.00022996,2]
[312985802,1706566238491,-923.21879953,0.00022996,2]
[312985803,1706566238503,-313.53042964,0.00022996,2]
[312985804,1706566238514,-432.75226238,0.00022996,2]
[312985805,1706566238526,-833.38123193,0.00022996,2]
[312985806,1706566238538,-199.03575703,0.00022996,2]
[312985807,1706566238549,-280.31627603,0.00022996,2]
[312985808,1706566238561,-892.0795951,0.00022997,2]
[312985809,1706566238572,-499.99,0.00022997,2]
[312985810,1706566238587,-506863.61444946,0.00022999,2]
[312985811,1706566238599,-751594.46213263,0.00023,2]
[312985812,1706566238611,-2599.8421,0.00023,2]
[312985813,1706566238622,-155.04,0.00023135,2]
[312985814,1706566238633,-150.0,0.00023207,2]
[312985815,1706566238645,-202.68,0.00023214,2]
[312985816,1706566238660,-251.88,0.00024009,2]
[312985817,1706566238674,-165.81,0.00024042,2]
[312985818,1706566238685,-156.59525524,0.00024257,2]
[312985819,1706566238697,-1437.05,0.00024304,2]
[312985820,1706566238709,-1416.69,0.00024384,2]
[312985821,1706566238720,-1171.0,0.00024384,2]
[312985822,1706566238732,-158.89,0.00024384,2]
[312985823,1706566238743,-479.07,0.00024428,2]
[312985824,1706566238754,-520.0,0.00024571,2]
[312985825,1706566238766,-600.0,0.00024598,2]
[312985826,1706566238777,-250.0,0.00024658,2]
[312985827,1706566238788,-161.06,0.00024818,2]
[312985828,1706566238799,-208.31498309,0.00025,2]
[312985829,1706566238810,-3011.67714353,0.00025,2]
[312985830,1706566238821,-303.55478187,0.00025,2]
[312985831,1706566238832,-167.43304946,0.00025,2]
[312985832,1706566238843,-326.93527378,0.00025,2]
[312985833,1706566238854,-550.0,0.00025,3]
[312985834,1706566238866,-251.88,0.000251,2]
[312985835,1706566238877,-963.67842191,0.00025355,2]
[312985836,1706566238888,-156.59525524,0.00025714,2]
[312985837,1706566238900,-1437.05,0.00025948,2]
[312985838,1706566238911,-150.0,0.00026079,2]
[312985839,1706566238922,-251.88,0.00026192,2]
[312985840,1706566238932,-165.81,0.00026227,2]
[312985841,1706566238943,-479.07,0.00026692,2]
[312985842,1706566238955,-2656.0,0.000267,2]
[312985843,1706566238966,-3301.0,0.000267,2]
[312985844,1706566238977,-979.433665,0.00026812,3]
[312985845,1706566238988,-150.0,0.000269,2]
[312985846,1706566238999,-417.13678591,0.00027,2]
[312985847,1706566239010,-600.0,0.00027,3]
[312985848,1706566239021,-156.59525524,0.00027171,2]
[312985849,1706566239032,-520.0,0.00027301,2]
[312985850,1706566239043,-600.0,0.00027332,2]
[312985851,1706566239054,-484.43,0.00027397,2]
[312985852,1706566239065,-186.06955767,0.000275,2]
[312985853,1706566239077,-1437.05,0.00027592,2]
[312985854,1706566239088,-3315.84,0.00027671,2]
[312985855,1706566239098,-484.43,0.00027686,2]
[312985856,1706566239109,-19176.38800721,0.000279,2]
[312985857,1706566239120,-963.67842191,0.00027909,2]
[312985858,1706566239131,-484.43,0.00027974,2]
[312985859,1706566239142,-484.43,0.00028262,2]
[312985860,1706566239153,-165.81,0.00028413,2]
[312985861,1706566239164,-484.43,0.00028551,2]
[312985862,1706566239175,-156.59525524,0.00028629,2]
[312985863,1706566239186,-3315.84,0.00028695,2]
[312985864,1706566239197,-484.43,0.00028839,2]
[312985865,1706566239208,-479.07,0.00028956,2]
[312985866,1706566239219,-650.0,0.00029,3]
[312985867,1706566239242,-484.43,0.00029128,2]
[312985868,1706566239258,-1437.05,0.00029236,2]
[312985869,1706566239271,-484.43,0.00029416,2]
[312985870,1706566239284,-484.43,0.00029704,2]
[312985871,1706566239296,-3315.84,0.00029719,2]
[312985872,1706566239310,-29685.7764,0.00029795,2]
[312985873,1706566239323,-245000.0,0.00029795,2]
[312985874,1706566239336,-484.43,0.00029993,2]
[312985875,1706566239349,-155.0,0.0003,2]
[312985876,1706566239361,-4961.49630549,0.0003,4]
[312985877,1706566239373,-50085.14594652,0.0003,4]
[312985878,1706566239386,-312.34538263,0.0003,2]
[312985879,1706566239398,-692.52631931,0.0003,2]
[312985880,1706566239411,-582.7666979,0.0003,2]
[312985881,1706566239422,-9657.29212585,0.0003,2]
[312985882,1706566239433,-330.0,0.0003,4]
[312985883,1706566239445,-4885.29235048,0.0003,4]
[312985884,1706566239456,-913.35829636,0.0003,4]
[312985885,1706566239468,-1851.29043,0.0003,2]
[312985886,1706566239479,-1851.29043,0.0003,2]
[312985887,1706566239493,-520.0,0.00030031,2]
[312985888,1706566239505,-600.0,0.00030065,2]
[312985889,1706566239517,-156.59525524,0.00030086,2]
[312985890,1706566239530,-201.45,0.00030137,2]
[312985891,1706566239541,-1851.29043,0.0003022,2]
[312985892,1706566239553,-484.43,0.00030281,2]
[312985893,1706566239565,-963.67842191,0.00030464,2]
[312985894,1706566239575,-1851.29044,0.0003053,2]
[312985895,1706566239585,-484.43,0.00030569,2]
[312985896,1706566239594,-165.81,0.00030599,2]
[312985897,1706566239604,-3315.84,0.00030743,2]
[312985898,1706566239614,-602.51997348,0.000308,2]
[312985899,1706566239623,-979.433665,0.00030826,5]
[312985900,1706566239633,-1851.29043,0.0003084,2]
[312985901,1706566239643,-484.43,0.00030858,2]
[312985902,1706566239994,-1437.05,0.00030879,2]
[312985903,1706566240012,-15950.12226376,0.000309,2]
[312985904,1706566240024,-7624.80129943,0.00031,2]
[312985905,1706566240034,-370.7392921,0.00031,2]
[312985906,1706566240044,-700.0,0.00031,3]
[312985907,1706566240053,-484.43,0.00031146,2]
[312985908,1706566240063,-1851.29043,0.0003115,2]
[312985909,1706566240072,-479.07,0.0003122,2]
[312985910,1706566240082,-484.43,0.00031435,2]
[312985911,1706566240091,-156.59525524,0.00031543,2]
[312985912,1706566240100,-180.0,0.00031644,2]
[312985913,1706566240110,-197.92,0.00031644,2]
[312985914,1706566240119,-484.43,0.00031723,2]
[312985915,1706566240129,-3315.84,0.00031767,2]
[312985916,1706566240139,-263.89358247,0.00032,2]
[312985917,1706566240149,-484.43,0.00032011,2]
[312985918,1706566240158,-160.37335377,0.00032167,3]
[312985919,1706566240168,-484.43,0.000323,2]
[312985920,1706566240177,-202.68,0.00032499,2]
[312985921,1706566240187,-161.63385363,0.000325,2]
[312985922,1706566240197,-484.43,0.00032588,2]
[312985923,1706566240207,-520.0,0.00032761,2]
[312985924,1706566240217,-786.58502124,0.00032776,21]
[312985925,1706566240227,-165.81,0.00032784,2]
[312985926,1706566240237,-600.0,0.00032798,2]
[312985927,1706566240247,-150.0,0.00032799,2]
[312985928,1706566240256,-150.0,0.00032799,2]
[312985929,1706566240267,-213453.07349755,0.000328,2]
[312985930,1706566240278,-484.43,0.00032877,2]
[312985931,1706566240288,-500.0,0.00032877,2]
[312985932,1706566240298,-186.52,0.00032877,2]
[312985933,1706566240307,-500.0,0.00032877,2]
[312985934,1706566240317,-156.59525524,0.00033,2]
[312985935,1706566240327,-963.67842191,0.00033018,5]
[312985936,1706566240336,-501.95177064,0.00033071,6]
[312985937,1706566240346,-3936.84982481,0.00033071,6]
[312985938,1706566240356,-193.12631424,0.000334,4]
[312985939,1706566240365,-479.07,0.00033484,2]
[312985940,1706566240375,-744.43267165,0.00033762,2]
[312985941,1706566240384,-156.59525524,0.00034457,2]
[312985942,1706566240393,-979.433665,0.00034841,7]
[312985943,1706566240403,-1420.95729654,0.000349,4]
[312985944,1706566240413,-2005.68104537,0.000349,2]
[312985945,1706566240422,-2005.68104518,0.000349,2]
[312985946,1706566240431,-2005.68104518,0.000349,2]
[312985947,1706566240441,-2005.68104518,0.000349,2]
[312985948,1706566240451,-2005.68104518,0.000349,2]
[312985949,1706566240461,-2005.68104518,0.000349,2]
[312985950,1706566240471,-2005.68104518,0.000349,2]
[312985951,1706566240480,-2005.68104518,0.000349,2]
[312985952,1706566240490,-5000.0,0.00035,7]
[312985953,1706566240499,-2136.77629159,0.00035,4]
[312985954,1706566240508,-12452.13976298,0.00035,7]
[312985955,1706566240518,-227.56817358,0.00035,7]
[312985956,1706566240528,-3000.0,0.00035,2]
[312985957,1706566240539,-190.411,0.00035,4]
[312985958,1706566240549,-195.35696276,0.00035,2]
[312985959,1706566240559,-2701.23172994,0.00035,2]
[312985960,1706566240568,-2005.68104518,0.00035432,2]
[312985961,1706566240577,-204.53595002,0.00035497,2]
[312985962,1706566240587,-153.48,0.000355,3]
[312985963,1706566240596,-1416.9,0.000355,3]
[312985964,1706566240605,-1416.9,0.000355,3]
[312985965,1706566240614,-1416.9,0.000355,3]
[312985966,1706566240623,-1416.9,0.000355,3]
[312985967,1706566240632,-1416.9,0.000355,3]
[312985968,1706566240642,-1416.9,0.000355,3]
[312985969,1706566240652,-1416.9,0.000355,3]
[312985970,1706566240662,-1416.9,0.000355,3]
[312985971,1706566240672,-1416.9,0.000355,3]
[312985972,1706566240681,-1416.9,0.000355,3]
[312985973,1706566240690,-1416.9,0.000355,3]
[312985974,1706566240700,-1416.9,0.000355,3]
[312985975,1706566240711,-1416.9,0.000355,3]
[312985976,1706566240722,-1416.9,0.000355,3]
[312985977,1706566240731,-1416.9,0.000355,3]
[312985978,1706566240742,-1416.9,0.000355,3]
[312985979,1706566240751,-1416.9,0.000355,3]
[312985980,1706566240760,-1416.9,0.000355,3]
[312985981,1706566240770,-1416.9,0.000355,3]
[312985982,1706566240778,-1416.9,0.000355,3]
[312985983,1706566240787,-963.67842191,0.00035573,8]
[312985984,1706566240796,-1416.69,0.00035616,2]
[312985985,1706566240805,-1171.0,0.00035616,2]
[312985986,1706566240815,-329.55,0.000357,7]
[312985987,1706566240825,-479.07,0.00035748,2]
[312985988,1706566240834,-156.59525524,0.00035914,2]
[312985989,1706566240844,-253.01096368,0.00036661,2]
[312985990,1706566240855,-677.65422016,0.00036661,2]
[312985991,1706566240865,-3427.48760427,0.00037,5]
[312985992,1706566240873,-2005.68104518,0.00037011,2]
[312985993,1706566240883,-786.58502121,0.00037307,28]
[312985994,1706566240892,-156.59525524,0.00037371,2]
[312985995,1706566240901,-22078.96451363,0.0003753,2]
[312985996,1706566240910,-150.0,0.00037627,2]
[312985997,1706566240918,-165.03648676,0.00037701,5]
[312985998,1706566240927,-269.72157515,0.00037897,4]
[312985999,1706566240936,-155.79842865,0.00037898,4]
[312986000,1706566240945,-767.58742384,0.00037898,2]
[312986001,1706566240954,-1205.56401792,0.00037898,4]
[312986002,1706566240964,-155.0,0.00037898,4]
[312986003,1706566240973,-3865.7058748,0.00037898,4]
[312986004,1706566240984,-199.60879995,0.00037898,4]
[312986005,1706566240994,-155.55978257,0.00037898,4]
[312986006,1706566241005,-1120.14795465,0.00037898,2]
[312986007,1706566241016,-155.63258898,0.00037898,4]
[312986008,1706566241025,-2648.32495509,0.00037898,2]
[312986009,1706566241034,-155.82054156,0.00037898,4]
[312986010,1706566241043,-386.69473877,0.00037899,4]
[312986011,1706566241052,-155.99604056,0.00037899,4]
[312986012,1706566241062,-1967.58824804,0.000379,2]
[312986013,1706566241071,-500.0,0.000379,2]
[312986014,1706566241081,-200.0,0.000379,2]
[312986015,1706566241090,-735.11800602,0.000379,4]
[312986016,1706566241098,-200.0721745,0.000379,4]
[312986017,1706566241107,-215.0,0.000379,2]
[312986018,1706566241117,-2000.0,0.000379,2]
[312986019,1706566241126,-200.0,0.000379,2]
[312986020,1706566241135,-647551.879863,0.000379,3]
[312986021,1706566241144,-479.07,0.00038011,2]
[312986022,1706566241153,-383.20087159,0.00038095,2]
[312986023,1706566241162,-963.67842191,0.00038127,11]
[312986024,1706566241171,-500.0,0.000384,2]
[312986025,1706566241181,-4495.03986899,0.000385,7]
[312986026,1706566241190,-561.26,0.000385,3]
[312986027,1706566241199,-2005.68104518,0.00038589,2]
[312986028,1706566241209,-2278.788,0.00038739,2]
[312986029,1706566241218,-150.0,0.00038799,2]
[312986030,1706566241228,-150.0,0.00038799,2]
[312986031,1706566241236,-5101.3643594,0.000388,2]
[312986032,1706566241245,-5101.3643594,0.000388,2]
[312986033,1706566241254,-5101.3643594,0.000388,2]
[312986034,1706566241263,-5101.3643594,0.000388,2]
[312986035,1706566241273,-5101.3643594,0.000388,2]
[312986036,1706566241282,-5101.3643594,0.000388,2]
[312986037,1706566241291,-5101.3643594,0.000388,2]
[312986038,1706566241300,-5101.3643594,0.000388,2]
[312986039,1706566241309,-5101.3643594,0.000388,2]
[312986040,1706566241318,-5101.3643594,0.000388,2]
[312986041,1706566241327,-5101.3643594,0.000388,2]
[312986042,1706566241337,-156.59525524,0.00038829,2]
[312986043,1706566241346,-979.433665,0.00038856,9]
[312986044,1706566241355,-282.60808243,0.0003898,2]
[312986045,1706566241364,-978.30213314,0.00039,4]
[312986046,1706566241373,-1431.73512433,0.00039,2]
[312986047,1706566241383,-621.60218478,0.00039,4]
[312986048,1706566241392,-575.867482,0.00039348,4]
[312986049,1706566241402,-9110.58017716,0.00039616,20]
[312986050,1706566241411,-1953.07140357,0.00039616,3]
[312986051,1706566241421,-73093.49957182,0.00039616,20]
[312986052,1706566241430,-350.00012539,0.000399,4]
[312986053,1706566241439,-607.55,0.0003999,10]
[312986054,1706566241448,-506.29,0.0003999,10]
[312986055,1706566241457,-421.91,0.0003999,10]
[312986056,1706566241466,-50000.0,0.0004,30]
[312986057,1706566241476,-180.5079485,0.0004,2]
[312986058,1706566241485,-808.50927266,0.0004,4]
[312986059,1706566241495,-2274.86979912,0.0004,4]
[312986060,1706566241504,-155.0,0.0004,2]
[312986061,1706566241513,-713.30733836,0.0004,30]
[312986062,1706566241523,-1206.56311575,0.0004,4]
[312986063,1706566241532,-22076.99674252,0.0004,4]
[312986064,1706566241541,-5000.0,0.0004,35]
[312986065,1706566241551,-49735.3808414,0.0004,4]
[312986066,1706566241560,-8337.98056249,0.0004,5]
[312986067,1706566241569,-3200.0,0.0004,4]
[312986068,1706566241579,-4610.35392767,0.0004,2]
[312986069,1706566241588,-155.0,0.0004,4]
[312986070,1706566241597,-188.00705383,0.0004,30]
[312986071,1706566241606,-669.78979745,0.0004,20]
[312986072,1706566241615,-166.94853957,0.0004,30]
[312986073,1706566241624,-2340.20201956,0.0004,4]
[312986074,1706566241633,-353.709781,0.0004,32]
[312986075,1706566241642,-2005.68104518,0.00040168,5]
[312986076,1706566241652,-153.48,0.000402,4]
[312986077,1706566241662,-153.48,0.000402,4]
[312986078,1706566241672,-1416.9,0.000402,4]
[312986079,1706566241682,-1416.9,0.000402,4]
[312986080,1706566241690,-1416.9,0.000402,4]
[312986081,1706566241699,-1416.9,0.000402,4]
[312986082,1706566241710,-1416.9,0.000402,4]
[312986083,1706566241719,-1416.9,0.000402,4]
[312986084,1706566241728,-1416.9,0.000402,4]
[312986085,1706566241738,-1416.9,0.000402,4]
[312986086,1706566241748,-1416.9,0.000402,4]
[312986087,1706566241757,-1416.9,0.000402,4]
[312986088,1706566241766,-1416.9,0.000402,4]
[312986089,1706566241775,-1416.9,0.000402,4]
[312986090,1706566241784,-1416.9,0.000402,4]
[312986091,1706566241793,-1416.9,0.000402,4]
[312986092,1706566241802,-1416.9,0.000402,4]
[312986093,1706566241811,-1416.9,0.000402,4]
[312986094,1706566241820,-1416.9,0.000402,4]
[312986095,1706566241829,-1416.9,0.000402,4]
[312986096,1706566241838,-1416.9,0.000402,4]
[312986097,1706566241847,-1416.9,0.000402,4]
[312986098,1706566241856,-191.122,0.00040239,2]
[312986099,1706566241865,-319.0,0.00040239,2]